fUST/lending_fUST_20241219
["ID","MTS","AMOUNT","RATE_DAILY","PERIOD"]
[345959007,1734567038970,-500.0,0.00023999,2]
[345959009,1734567038979,-500.0,0.00023999,2]
[345959011,1734567038988,-500.0,0.00023999,2]
[345959013,1734567038998,-500.0,0.00023999,2]
[345959015,1734567039007,-500.0,0.00023999,2]
[345959017,1734567039016,-500.0,0.00023999,2]
[345959019,1734567039027,-500.0,0.00023999,2]
[345959021,1734567039036,-500.0,0.00023999,2]
[345959023,1734567039045,-500.0,0.00023999,2]
[345959025,1734567039054,-500.0,0.00023999,2]
[345959027,1734567039064,-500.0,0.00023999,2]
[345959029,1734567039073,-500.0,0.00023999,2]
[345959031,1734567039083,-500.0,0.00023999,2]
[345959033,1734567039092,-500.0,0.00023999,2]
[345959035,1734567039101,-500.0,0.00023999,2]
[345959037,1734567039110,-500.0,0.00023999,2]
[345959039,1734567039123,-500.0,0.00023999,2]
[345959041,1734567039132,-500.0,0.00023999,2]
[345959043,1734567039142,-500.0,0.00023999,2]
[345959045,1734567039151,-500.0,0.00023999,2]
[345959047,1734567039161,-500.0,0.00023999,2]
[345959049,1734567039170,-500.0,0.00023999,2]
[345959051,1734567039179,-500.0,0.00023999,2]
[345959053,1734567039188,-500.0,0.00023999,2]
[345959055,1734567039197,-500.0,0.00023999,2]
[345959057,1734567039206,-500.0,0.00023999,2]
[345959059,1734567039216,-500.0,0.00023999,2]
[345959061,1734567039225,-500.0,0.00023999,2]
[345959063,1734567039234,-500.0,0.00023999,2]
[345959065,1734567039243,-500.0,0.00023999,2]
[345959067,1734567039253,-500.0,0.00023999,2]
[345959069,1734567039262,-500.0,0.00023999,2]
[345959071,1734567039271,-500.0,0.00023999,2]
[345959073,1734567039280,-413.23575756,0.00023999,2]
[345959075,1734567039289,-500.0,0.00023999,2]
[345959076,1734567039298,-500.0,0.00023999,2]
[345959078,1734567039308,-500.0,0.00023999,2]
[345959080,1734567039317,-500.0,0.00023999,2]
[345959083,1734567039326,-500.0,0.00023999,2]
[345959084,1734567039335,-500.0,0.00023999,2]
[345959086,1734567039344,-500.0,0.00023999,2]
[345959088,1734567039354,-41344.54955017,0.00024,2]
[345959090,1734567039364,-6749.2875722,0.00024,2]
[345959092,1734567039375,-706513.4163038,0.00024,4]
[345959094,1734567039384,-198.941014,0.00024057,2]
[345959096,1734567039393,-1826.27,0.00024109,2]
[345959098,1734567039402,-309.2988466,0.00024164,2]
[345959100,1734567039411,-198.941014,0.0002428,2]
[345959102,1734567039421,-299.841,0.00024372,2]
[345959104,1734567039430,-300.0,0.000244,11]
[345959106,1734567039439,-785.06,0.000245,2]
[345959108,1734567039449,-198.941014,0.00024502,2]
[345959110,1734567039459,-1000.0,0.00024521,2]
[345959112,1734567039468,-151.0,0.000246,5]
[345959114,1734567039477,-170.10072172,0.00024656,2]
[345959116,1734567039487,-500.0,0.00024657,6]
[345959118,1734567039498,-500.0,0.00024657,6]
[345959120,1734567039508,-500.0,0.00024657,6]
[345959123,1734567039520,-500.0,0.00024657,6]
[345959124,1734567039531,-500.0,0.00024657,6]
[345959127,1734567039541,-500.0,0.00024657,6]
[345959129,1734567039551,-500.0,0.00024657,6]
[345959130,1734567039561,-500.0,0.00024657,6]
[345959133,1734567039570,-500.0,0.00024657,2]
[345959135,1734567039580,-536.99517331,0.00024657,6]
[345959137,1734567039589,-500.0,0.00024657,6]
[345959138,1734567039598,-500.0,0.00024657,6]
[345959140,1734567039607,-500.0,0.00024657,6]
[345959142,1734567039620,-2130.27,0.00024657,6]
[345959145,1734567039630,-540.65972066,0.00024657,6]
[345959147,1734567039639,-500.0,0.00024657,6]
[345959149,1734567039648,-500.0,0.00024657,6]
[345959151,1734567039658,-500.0,0.00024657,6]
[345959152,1734567039668,-1198.3,0.00024657,6]
[345959154,1734567039677,-500.0,0.00024657,6]
[345959157,1734567039688,-603.54,0.00024657,6]
[345959159,1734567039697,-500.0,0.00024657,6]
[345959161,1734567039707,-500.0,0.00024657,6]
[345959163,1734567039717,-500.0,0.00024657,6]
[345959165,1734567039726,-500.0,0.00024657,6]
[345959167,1734567039735,-1000.0,0.00024657,5]
[345959168,1734567039744,-500.0,0.00024657,6]
[345959171,1734567039755,-500.0,0.00024657,6]
[345959172,1734567039765,-1445.4,0.00024657,6]
[345959199,1734567039942,-500.0,0.00024657,6]
[345959201,1734567039953,-500.0,0.00024657,6]
[345959203,1734567039963,-500.0,0.00024657,6]
[345959205,1734567039972,-368.5,0.00024657,6]
[345959207,1734567039982,-302.56579974,0.00024657,6]
[345959209,1734567039993,-570.06106738,0.00024657,6]
[345959211,1734567040003,-500.0,0.00024657,6]
[345959213,1734567040013,-500.0,0.00024657,6]
[345959215,1734567040022,-582.67,0.00024657,6]
[345959217,1734567040032,-500.0,0.00024657,6]
[345959219,1734567040041,-500.0,0.00024657,6]
[345959221,1734567040050,-261.78178264,0.00024657,6]
[345959223,1734567040060,-1430.09,0.00024657,6]
[345959225,1734567040069,-500.0,0.00024657,6]
[345959227,1734567040079,-1017.29,0.00024657,6]
[345959229,1734567040088,-1554.38,0.00024657,2]
[345959231,1734567040097,-500.0,0.00024657,6]
[345959233,1734567040107,-845.81,0.00024657,6]
[345959235,1734567040120,-621.19640584,0.00024657,6]
[345959237,1734567040129,-1078.28,0.00024657,6]
[345959239,1734567040139,-500.0,0.00024657,6]
[345959241,1734567040149,-500.0,0.00024657,6]
[345959243,1734567040159,-500.0,0.00024657,6]
[345959245,1734567040169,-500.0,0.00024657,6]
[345959247,1734567040178,-500.0,0.00024657,6]
[345959249,1734567040187,-500.0,0.00024657,6]
[345959251,1734567040197,-691.42,0.00024657,6]
[345959253,1734567040206,-500.0,0.00024657,6]
[345959255,1734567040216,-168.0,0.00024657,6]
[345959257,1734567040224,-500.0,0.00024657,6]
[345959259,1734567040234,-500.0,0.00024657,6]
[345959261,1734567040243,-523.48240923,0.00024657,6]
[345959263,1734567040252,-500.0,0.00024657,6]
[345959265,1734567040261,-579.32,0.00024657,6]
[345959267,1734567040271,-500.0,0.00024657,6]
[345959269,1734567040280,-1100.93,0.00024657,6]
[345959271,1734567040289,-500.0,0.00024657,6]
[345959273,1734567040299,-500.0,0.00024657,6]
[345959275,1734567040309,-500.0,0.00024657,6]
[345959277,1734567040318,-594.53,0.00024657,6]
[345959279,1734567040327,-500.0,0.00024657,6]
[345959281,1734567040336,-574.9,0.00024657,6]
[345959283,1734567040345,-344.92851225,0.00024657,6]
[345959285,1734567040355,-500.0,0.00024657,6]
[345959287,1734567040364,-500.0,0.00024657,6]
[345959289,1734567040380,-500.0,0.00024657,6]
[345959291,1734567040389,-500.0,0.00024657,6]
[345959293,1734567040399,-500.0,0.00024657,6]
[345959295,1734567040408,-500.0,0.00024657,6]
[345959297,1734567040417,-969.89,0.00024657,6]
[345959299,1734567040427,-622.84,0.00024657,6]
[345959301,1734567040436,-257.49,0.00024657,6]
[345959303,1734567040446,-506.08797561,0.00024657,6]
[345959305,1734567040455,-507.46647783,0.00024657,6]
[345959307,1734567040464,-500.0,0.00024657,6]
[345959309,1734567040474,-500.0,0.00024657,2]
[345959311,1734567040484,-500.0,0.00024657,6]
[345959313,1734567040493,-500.0,0.00024657,6]
[345959314,1734567040502,-988.46,0.00024657,6]
[345959316,1734567040511,-501.73135802,0.00024657,6]
[345959319,1734567040521,-500.0,0.00024657,6]
[345959321,1734567040531,-500.0,0.00024657,6]
[345959322,1734567040540,-1783.87,0.00024657,2]
[345959325,1734567040552,-500.0,0.00024657,6]
[345959327,1734567040563,-500.0,0.00024657,6]
[345959329,1734567040572,-500.0,0.00024657,6]
[345959331,1734567040581,-2529.78,0.00024657,2]
[345959333,1734567040591,-505.24002864,0.00024657,6]
[345959335,1734567040599,-500.0,0.00024657,6]
[345959337,1734567040609,-932.76,0.00024657,6]
[345959339,1734567040624,-500.0,0.00024657,6]
[345959341,1734567040633,-542.1079095,0.00024657,6]
[345959343,1734567040643,-500.0,0.00024657,6]
[345959345,1734567040652,-905.31,0.00024657,6]
[345959347,1734567040661,-500.0,0.00024657,6]
[345959348,1734567040671,-500.0,0.00024657,6]
[345959351,1734567040681,-500.0,0.00024657,6]
[345959352,1734567040691,-500.0,0.00024657,6]
[345959355,1734567040701,-500.0,0.00024657,6]
[345959357,1734567040711,-515.04,0.00024657,2]
[345959358,1734567040721,-500.0,0.00024657,6]
[345959361,1734567040731,-500.0,0.00024657,6]
[345959363,1734567040741,-503.98690033,0.00024657,6]
[345959365,1734567040750,-593.47,0.00024657,6]
[345959367,1734567040760,-500.0,0.00024657,6]
[345959369,1734567040770,-504.07457354,0.00024657,6]
[345959371,1734567040779,-500.0,0.00024657,6]
[345959373,1734567040789,-500.0,0.00024657,6]
[345959375,1734567040798,-17825.34,0.00024657,6]
[345959377,1734567040808,-901.95,0.00024657,6]
[345959379,1734567040817,-533.58,0.00024657,6]
[345959381,1734567040826,-41511.75,0.00024657,6]
[345959383,1734567040836,-500.0,0.00024657,6]
[345959385,1734567040845,-500.0,0.00024657,6]
[345959386,1734567040856,-500.0,0.00024657,6]
[345959388,1734567040865,-500.0,0.00024657,6]
[345959390,1734567040879,-493.3280801,0.00024657,6]
[345959392,1734567040888,-500.0,0.00024657,6]
[345959394,1734567040899,-444.0899331,0.00024657,6]
[345959397,1734567040909,-500.0,0.00024657,6]
[345959398,1734567040918,-463.65088598,0.00024657,6]
[345959401,1734567040929,-500.0,0.00024657,6]
[345959403,1734567040939,-500.0,0.00024657,6]
[345959405,1734567040948,-779.72,0.00024657,6]
[345959406,1734567040958,-500.0,0.00024657,6]
[345959407,1734567040968,-3793.32,0.00024657,6]
[345959408,1734567040978,-500.0,0.00024657,6]
[345959409,1734567040988,-500.0,0.00024657,6]
[345959410,1734567040998,-500.0,0.00024657,6]
[345959411,1734567041007,-500.0,0.00024657,6]
[345959413,1734567041017,-500.0,0.00024657,6]
[345959415,1734567041026,-355.27007234,0.00024657,6]
[345959417,1734567041036,-500.0,0.00024657,6]
[345959419,1734567041046,-6015.79,0.00024657,6]
[345959421,1734567041056,-4319.96,0.00024657,6]
[345959423,1734567041066,-500.0,0.00024657,6]
[345959426,1734567041076,-9351.42,0.00024657,6]
[345959428,1734567041085,-500.0,0.00024657,6]
[345959430,1734567041095,-3108.09,0.00024657,6]
[345959432,1734567041105,-9995.12,0.00024657,6]
[345959434,1734567041114,-500.0,0.00024657,6]
[345959436,1734567041132,-500.0,0.00024657,6]
[345959438,1734567041141,-4623.4,0.00024657,6]
[345959440,1734567041150,-616.12858949,0.00024657,6]
[345959442,1734567041159,-500.0,0.00024657,6]
[345959444,1734567041169,-1503.42,0.00024657,6]
[345959446,1734567041179,-1150.35,0.00024657,6]
[345959448,1734567041190,-1699.36,0.00024657,6]
[345959450,1734567041201,-500.0,0.00024657,6]
[345959452,1734567041210,-500.0,0.00024657,6]
[345959454,1734567041219,-500.0,0.00024657,6]
[345959456,1734567041229,-237.27377424,0.00024657,6]
[345959458,1734567041238,-615.4,0.00024657,6]
[345959460,1734567041248,-8549.49,0.00024657,6]
[345959462,1734567041258,-415.78918801,0.00024657,6]
[345959464,1734567041267,-500.0,0.00024657,6]
[345959466,1734567041277,-500.0,0.00024657,6]
[345959468,1734567041286,-500.0,0.00024657,6]
[345959470,1734567041295,-500.0,0.00024657,6]
[345959472,1734567041304,-500.0,0.00024657,6]
[345959474,1734567041313,-500.0,0.00024657,6]
[345959476,1734567041322,-500.0,0.00024657,6]
[345959478,1734567041331,-4178.68,0.00024657,2]
[345959480,1734567041340,-466.01786884,0.00024657,6]
[345959482,1734567041349,-500.0,0.00024657,6]
[345959484,1734567041359,-500.0,0.00024657,6]
[345959486,1734567041372,-2376.87,0.00024657,6]
[345959488,1734567041381,-500.0,0.00024657,6]
[345959490,1734567041391,-565.64,0.00024657,6]
[345959492,1734567041400,-760.25,0.00024657,6]
[345959494,1734567041409,-500.0,0.00024657,6]
[345959496,1734567041419,-500.0,0.00024657,6]
[345959498,1734567041427,-500.0,0.00024657,6]
[345959500,1734567041437,-764.17,0.00024657,6]
[345959502,1734567041446,-14663.69,0.00024657,6]
[345959504,1734567041455,-500.0,0.00024657,6]
[345959506,1734567041465,-10348.48,0.00024657,6]
[345959508,1734567041474,-3258.54,0.00024657,6]
[345959510,1734567041483,-500.0,0.00024657,6]
[345959512,1734567041493,-5716.88,0.00024657,6]
[345959514,1734567041503,-500.0,0.00024657,6]
[345959516,1734567041512,-500.0,0.00024657,6]
[345959518,1734567041521,-500.0,0.00024657,6]
[345959520,1734567041531,-500.0,0.00024657,6]
[345959522,1734567041540,-1175.51,0.00024657,2]
[345959524,1734567041549,-506.27870457,0.00024657,6]
[345959526,1734567041559,-500.0,0.00024657,6]
[345959528,1734567041568,-1186.29,0.00024657,6]
[345959530,1734567041577,-500.0,0.00024657,6]
[345959532,1734567041586,-4797.63,0.00024657,6]
[345959534,1734567041596,-503.81303686,0.00024657,6]
[345959536,1734567041605,-1553.75,0.00024657,6]
[345959538,1734567041614,-500.0,0.00024657,6]
[345959540,1734567041628,-437.64536836,0.00024657,6]
[345959542,1734567041638,-500.0,0.00024657,6]
[345959544,1734567041647,-567.63,0.00024657,6]
[345959546,1734567041656,-1135.17,0.00024657,6]
[345959548,1734567041665,-500.0,0.00024657,6]
[345959550,1734567041674,-1346.16,0.00024657,6]
[345959552,1734567041684,-500.0,0.00024657,6]
[345959554,1734567041693,-500.0,0.00024657,6]
[345959556,1734567041702,-500.0,0.00024657,6]
[345959558,1734567041711,-500.0,0.00024657,6]
[345959560,1734567041721,-497.0,0.00024657,2]
[345959562,1734567041730,-4771.16,0.00024657,6]
[345959564,1734567041739,-500.0,0.00024657,6]
[345959566,1734567041749,-500.0,0.00024673,2]
[345959568,1734567041759,-500.0,0.00024673,2]
[345959570,1734567041768,-160.2898201,0.00024673,2]
[345959572,1734567041777,-500.0,0.00024673,2]
[345959574,1734567041786,-271.3461181,0.00024673,2]
[345959576,1734567041796,-500.0,0.00024673,2]
[345959578,1734567041805,-500.0,0.00024673,2]
[345959580,1734567041814,-1575.8,0.000247,14]
[345959582,1734567041823,-7996.3,0.000247,2]
[345959584,1734567041832,-198.941014,0.00024725,2]
[345959586,1734567041842,-666.0,0.00024831,2]
[345959588,1734567041857,-3365.09709914,0.00024881,7]
[345959591,1734567041874,-1257.599999,0.000249,2]
[345959593,1734567041884,-196.70091466,0.0002493,2]
[345959595,1734567041895,-500.0,0.00024931,6]
[345959596,1734567041905,-500.0,0.00024931,6]
[345959598,1734567041915,-500.0,0.00024931,6]
[345959601,1734567041925,-500.0,0.00024931,6]
[345959603,1734567041935,-500.0,0.00024931,6]
[345959605,1734567041946,-500.0,0.00024931,6]
[345959607,1734567041955,-500.0,0.00024931,6]
[345959609,1734567041964,-500.0,0.00024931,6]
[345959611,1734567041973,-494.30826148,0.00024931,2]
[345959613,1734567041982,-500.0,0.00024931,6]
[345959615,1734567041991,-500.0,0.00024931,6]
[345959617,1734567042002,-500.0,0.00024931,6]
[345959619,1734567042011,-2130.27,0.00024931,6]
[345959621,1734567042021,-500.0,0.00024931,6]
[345959623,1734567042030,-215.01824526,0.00024931,6]
[345959625,1734567042039,-1198.3,0.00024931,6]
[345959627,1734567042049,-230.07757907,0.00024931,6]
[345959629,1734567042058,-603.54,0.00024931,6]
[345959631,1734567042067,-500.0,0.00024931,6]
[345959633,1734567042076,-500.0,0.00024931,6]
[345959635,1734567042085,-500.0,0.00024931,6]
[345959637,1734567042094,-1000.0,0.00024931,5]
[345959639,1734567042104,-500.0,0.00024931,6]
[345959641,1734567042113,-500.0,0.00024931,6]
[345959643,1734567042128,-1445.4,0.00024931,6]
[345959645,1734567042137,-500.0,0.00024931,6]
[345959647,1734567042146,-500.0,0.00024931,6]
[345959649,1734567042155,-151.0,0.00024931,7]
[345959651,1734567042164,-486.21005985,0.00024931,6]
[345959653,1734567042173,-500.0,0.00024931,6]
[345959655,1734567042182,-582.67,0.00024931,6]
[345959657,1734567042191,-500.0,0.00024931,6]
[345959659,1734567042200,-500.0,0.00024931,6]
[345959661,1734567042209,-1430.09,0.00024931,6]
[345959663,1734567042218,-500.0,0.00024931,6]
[345959665,1734567042227,-1017.29,0.00024931,6]
[345959667,1734567042236,-1554.38,0.00024931,2]
[345959669,1734567042245,-500.0,0.00024931,6]
[345959671,1734567042254,-845.81,0.00024931,6]
[345959673,1734567042263,-1078.28,0.00024931,6]
[345959675,1734567042273,-500.0,0.00024931,6]
[345959677,1734567042282,-500.0,0.00024931,6]
[345959679,1734567042291,-500.0,0.00024931,6]
[345959681,1734567042300,-500.0,0.00024931,6]
[345959683,1734567042309,-500.0,0.00024931,6]
[345959685,1734567042318,-500.0,0.00024931,6]
[345959687,1734567042327,-691.42,0.00024931,6]
[345959689,1734567042336,-197.62571648,0.00024931,6]
[345959691,1734567042346,-168.0,0.00024931,6]
[345959693,1734567042355,-500.0,0.00024931,6]
[345959695,1734567042364,-500.0,0.00024931,6]
[345959697,1734567042377,-500.0,0.00024931,6]
[345959699,1734567042386,-579.32,0.00024931,6]
[345959701,1734567042395,-500.0,0.00024931,6]
[345959703,1734567042404,-1100.93,0.00024931,6]
[345959705,1734567042414,-500.0,0.00024931,6]
[345959707,1734567042423,-500.0,0.00024931,6]
[345959709,1734567042432,-500.0,0.00024931,6]
[345959711,1734567042441,-594.53,0.00024931,6]
[345959713,1734567042451,-609.13940509,0.00024931,6]
[345959715,1734567042459,-574.9,0.00024931,6]
[345959717,1734567042469,-196.36999483,0.00024931,6]
[345959719,1734567042478,-500.0,0.00024931,6]
[345959721,1734567042487,-500.0,0.00024931,6]
[345959723,1734567042497,-500.0,0.00024931,6]
[345959725,1734567042506,-500.0,0.00024931,6]
[345959727,1734567042515,-969.89,0.00024931,6]
[345959729,1734567042524,-622.84,0.00024931,6]
[345959731,1734567042533,-500.0,0.00024931,6]
[345959733,1734567042543,-151.0,0.00024931,7]
[345959735,1734567042552,-500.0,0.00024931,6]
[345959737,1734567042563,-500.0,0.00024931,2]
[345959739,1734567042572,-500.0,0.00024931,6]
[345959741,1734567042582,-988.46,0.00024931,6]
[345959743,1734567042591,-500.0,0.00024931,6]
[345959745,1734567042600,-151.0,0.00024931,7]
[345959747,1734567042610,-500.0,0.00024931,6]
[345959749,1734567042623,-1783.87,0.00024931,2]
[345959751,1734567042631,-500.0,0.00024931,6]
[345959753,1734567042641,-500.0,0.00024931,6]
[345959755,1734567042650,-500.0,0.00024931,6]
[345959757,1734567042659,-2529.78,0.00024931,2]
[345959758,1734567042669,-500.0,0.00024931,6]
[345959761,1734567042678,-932.76,0.00024931,6]
[345959762,1734567042687,-500.0,0.00024931,6]
[345959765,1734567042697,-905.31,0.00024931,6]
[345959766,1734567042707,-615.66370302,0.00024931,6]
[345959768,1734567042716,-500.0,0.00024931,6]
[345959770,1734567042726,-500.0,0.00024931,6]
[345959772,1734567042735,-466.11065666,0.00024931,6]
[345959774,1734567042744,-500.0,0.00024931,6]
[345959776,1734567042753,-515.04,0.00024931,2]
[345959778,1734567042762,-500.0,0.00024931,6]
[345959780,1734567042772,-500.0,0.00024931,6]
[345959782,1734567042781,-593.47,0.00024931,6]
[345959785,1734567042791,-500.0,0.00024931,6]
[345959788,1734567042800,-500.0,0.00024931,6]
[345959791,1734567042810,-500.0,0.00024931,6]
[345959794,1734567042819,-17825.34,0.00024931,6]
[345959796,1734567042828,-901.95,0.00024931,6]
[345959800,1734567042838,-533.58,0.00024931,6]
[345959804,1734567042848,-41511.75,0.00024931,6]
[345959807,1734567042860,-500.0,0.00024931,6]
[345959810,1734567042871,-500.0,0.00024931,6]
[345959813,1734567042880,-500.0,0.00024931,6]
[345959816,1734567042891,-152.10006742,0.00024931,6]
[345959819,1734567042900,-500.0,0.00024931,6]
[345959822,1734567042909,-500.0,0.00024931,6]
[345959825,1734567042919,-500.0,0.00024931,6]
[345959827,1734567042929,-500.0,0.00024931,6]
[345959829,1734567042939,-779.72,0.00024931,6]
[345959831,1734567042950,-500.0,0.00024931,6]
[345959833,1734567042960,-3793.32,0.00024931,6]
[345959834,1734567042970,-603.24236731,0.00024931,6]
[345959835,1734567042979,-500.0,0.00024931,6]
[345959836,1734567042989,-500.0,0.00024931,6]
[345959837,1734567042998,-500.0,0.00024931,6]
[345959838,1734567043008,-500.0,0.00024931,6]
[345959839,1734567043017,-320.158224,0.00024931,7]
[345959840,1734567043026,-6015.79,0.00024931,6]
[345959841,1734567043035,-320.158224,0.00024931,7]
[345959842,1734567043044,-4319.96,0.00024931,6]
[345959843,1734567043053,-500.0,0.00024931,6]
[345959844,1734567043064,-9351.42,0.00024931,6]
[345959845,1734567043076,-500.0,0.00024931,6]
[345959846,1734567043088,-3108.09,0.00024931,6]
[345959847,1734567043099,-9995.12,0.00024931,6]
[345959848,1734567043111,-500.0,0.00024931,6]
[345959849,1734567043126,-215.787745,0.00024931,7]
[345959850,1734567043136,-500.0,0.00024931,6]
[345959851,1734567043146,-215.787745,0.00024931,7]
[345959852,1734567043156,-151.0,0.00024931,7]
[345959853,1734567043167,-4623.4,0.00024931,6]
[345959854,1734567043176,-151.0,0.00024931,7]
[345959855,1734567043186,-151.0,0.00024931,7]
[345959856,1734567043195,-500.0,0.00024931,6]
[345959857,1734567043205,-151.0,0.00024931,7]
[345959858,1734567043215,-1503.42,0.00024931,6]
[345959859,1734567043224,-1150.35,0.00024931,6]
[345959860,1734567043234,-1699.36,0.00024931,6]
[345959861,1734567043244,-500.0,0.00024931,6]
[345959862,1734567043253,-500.0,0.00024931,6]
[345959863,1734567043263,-500.0,0.00024931,6]
[345959864,1734567043272,-615.4,0.00024931,6]
[345959866,1734567043282,-8549.49,0.00024931,6]
[345959868,1734567043291,-151.0,0.00024931,7]
[345959869,1734567043300,-500.0,0.00024931,6]
[345959870,1734567043309,-500.0,0.00024931,6]
[345959871,1734567043319,-500.0,0.00024931,6]
[345959872,1734567043329,-4178.68,0.00024931,2]
[345959873,1734567043338,-500.0,0.00024931,6]
[345959874,1734567043347,-2376.87,0.00024931,6]
[345959875,1734567043357,-500.0,0.00024931,6]
[345959876,1734567043367,-565.64,0.00024931,6]
[345959877,1734567043381,-760.25,0.00024931,6]
[345959878,1734567043391,-500.0,0.00024931,6]
[345959879,1734567043400,-500.0,0.00024931,6]
[345959880,1734567043410,-764.17,0.00024931,6]
[345959881,1734567043420,-14663.69,0.00024931,6]
[345959882,1734567043429,-500.0,0.00024931,6]
[345959883,1734567043439,-10348.48,0.00024931,6]
[345959884,1734567043449,-3258.54,0.00024931,6]
[345959885,1734567043459,-500.0,0.00024931,6]
[345959886,1734567043468,-5716.88,0.00024931,6]
[345959887,1734567043477,-500.0,0.00024931,6]
[345959888,1734567043487,-500.0,0.00024931,6]
[345959889,1734567043496,-500.0,0.00024931,6]
[345959890,1734567043505,-500.0,0.00024931,6]
[345959891,1734567043515,-500.0,0.00024931,6]
[345959892,1734567043524,-1186.29,0.00024931,6]
[345959893,1734567043534,-500.0,0.00024931,6]
[345959894,1734567043543,-4797.63,0.00024931,6]
[345959895,1734567043552,-1553.75,0.00024931,6]
[345959896,1734567043561,-500.0,0.00024931,6]
[345959897,1734567043571,-567.63,0.00024931,6]
[345959898,1734567043580,-1135.17,0.00024931,6]
[345959899,1734567043590,-156.8191157,0.00024931,6]
[345959900,1734567043599,-1346.16,0.00024931,6]
[345959901,1734567043609,-151.0,0.00024931,7]
[345959902,1734567043619,-500.0,0.00024931,6]
[345959903,1734567043634,-151.0,0.00024931,7]
[345959904,1734567043643,-500.0,0.00024931,6]
[345959905,1734567043652,-500.0,0.00024931,6]
[345959906,1734567043662,-500.0,0.00024931,6]
[345959907,1734567043671,-151.0,0.00024931,7]
[345959909,1734567043680,-4771.16,0.00024931,6]
[345959910,1734567043690,-500.0,0.00024931,6]
[345959912,1734567043699,-805.94523866,0.00024932,2]
[345959914,1734567043709,-198.941014,0.00024948,2]
[345959916,1734567043719,-500.0,0.00024973,2]
[345959917,1734567043729,-502.75830535,0.00024973,2]
[345959919,1734567043738,-500.0,0.00024973,2]
[345959920,1734567043747,-300.0,0.00025,2]
[345959921,1734567043757,-162.9,0.00025,2]
[345959922,1734567043767,-514.24875076,0.00025,20]
[345959923,1734567043776,-11042.0,0.00025,2]
[345959924,1734567043786,-38239.12216525,0.00025,100]
[345959925,1734567043795,-5000.0,0.00025,5]
[345959926,1734567043805,-11664.18,0.00025,7]
[345959927,1734567043815,-65088.14431875,0.00025,2]
[345959928,1734567043824,-180.0,0.00025,2]
[345959929,1734567043833,-814.3145154,0.00025,2]
[345959930,1734567043843,-5000.0,0.00025,5]
[345959931,1734567043854,-1678.73528957,0.00025,7]
[345959932,1734567043875,-1678.73528957,0.00025,30]
[345959933,1734567043887,-151.0,0.00025,7]
[345959934,1734567043897,-500.0,0.00025,30]
[345959935,1734567043907,-500.0,0.00025,30]
[345959936,1734567043916,-500.0,0.00025,30]
[345959937,1734567043927,-500.0,0.00025,30]
[345959938,1734567044078,-500.0,0.00025,30]
[345959939,1734567044089,-500.0,0.00025,30]
[345959940,1734567044098,-500.0,0.00025,30]
[345959941,1734567044108,-500.0,0.00025,30]
[345959942,1734567044118,-500.0,0.00025,30]
[345959943,1734567044132,-500.0,0.00025,30]